{"text_format":"1","workbook":"xlsx","n_sheets":3,"sheets":["Sectiunile A-C","Buget indicativ si Anexe","Sectiunile D-F"],"not_rendered":{"charts":0,"images":37,"macros":1,"external_links":0,"defined_names":0,"comments":0,"pivot_tables":0},"unopened":[],"bounds":{"document_bytes":16777216,"sheet_cells":100000,"rows_first":2000,"rows_last":500,"rows_between":2000,"halvings":0,"cell_chars":16384,"cell_head_chars":4096},"cells_cut":0,"cells_raw":0,"read":"whole","date_system":"1900"}

{"sheet":"Sectiunile A-C","index":0,"n_rows":249,"n_cols":9,"rows_kept":249,"cut":false,"hidden":false,"merged":[[113,0,113,5],[114,0,114,3],[116,0,116,2],[95,5,95,7],[2,0,2,8],[62,4,62,5],[65,4,65,5],[71,4,71,5],[77,4,77,5],[83,4,83,5],[25,0,25,8],[26,0,26,8],[27,0,27,8],[75,0,79,1],[99,0,99,3],[81,0,85,1],[83,7,83,8],[47,0,49,8],[69,0,73,1],[77,7,77,8],[51,0,57,8],[87,0,91,1],[63,0,67,1],[65,7,65,8],[60,0,60,1],[60,2,60,4],[89,4,89,5],[94,1,94,2],[94,5,94,7],[62,7,62,8],[43,0,43,2],[18,0,18,2],[60,7,60,8],[29,0,29,8],[34,0,34,8],[28,0,28,8],[46,0,46,1],[71,7,71,8],[44,0,45,8],[0,0,0,8],[3,6,3,8],[5,6,5,8],[5,0,5,5],[58,0,58,2],[12,0,12,1],[12,2,12,4],[19,0,19,8],[6,6,6,8],[7,6,7,8],[9,6,9,8],[6,0,6,5],[7,0,7,5],[10,6,10,8],[10,1,10,5],[21,1,21,8],[24,0,24,1],[13,0,13,4],[15,0,15,1],[17,0,17,4],[11,6,17,8],[9,1,9,5],[41,7,41,8],[42,7,42,8],[105,0,105,2],[106,0,106,1],[106,2,107,8],[108,0,109,2],[108,5,108,8],[110,0,110,2],[110,5,110,8],[89,7,89,8],[92,0,92,3],[100,2,101,8],[104,0,104,2],[104,5,104,8],[100,0,100,1],[102,0,103,2],[102,5,102,8],[120,3,120,5],[122,0,122,2],[122,6,122,7],[122,3,122,4],[117,0,117,1],[117,2,117,6],[117,7,117,8],[118,0,118,1],[118,3,118,5],[118,7,118,8],[135,0,135,2],[133,0,133,3],[133,5,133,7],[137,0,137,3],[137,5,137,7],[125,0,125,1],[129,0,129,3],[129,5,129,7],[131,0,131,2],[145,0,145,1],[146,0,146,1],[151,0,151,1],[152,0,152,1],[152,3,152,4],[152,6,152,8],[146,3,146,6],[140,0,140,7],[142,2,142,3],[143,0,143,1],[143,3,143,4],[143,6,143,8],[164,0,164,1],[164,5,164,7],[166,0,166,2],[166,6,166,7],[167,6,168,7],[167,5,168,5],[167,4,168,4],[167,3,168,3],[154,0,154,8],[157,0,157,1],[157,2,157,3],[157,7,157,8],[157,5,157,6],[167,8,168,8],[160,0,160,8],[161,0,161,7],[163,0,163,1],[163,5,163,7],[155,0,156,1],[155,2,156,3],[155,4,156,4],[155,5,156,6],[155,7,156,8],[184,0,184,1],[184,3,184,4],[185,0,185,1],[185,3,185,4],[185,7,185,8],[176,0,176,7],[179,0,179,1],[179,3,179,5],[179,7,179,8],[182,2,182,3],[196,0,196,8],[197,0,198,8],[200,0,200,3],[200,5,200,8],[201,0,202,3],[201,5,202,8],[187,1,187,4],[190,0,190,7],[192,0,192,3],[192,5,192,8],[193,0,194,3],[193,5,194,8],[206,0,206,8],[207,0,207,8],[210,0,212,1],[210,2,210,7],[211,2,212,2],[211,7,212,7],[211,6,212,6],[211,3,212,5],[210,8,212,8],[213,0,215,1],[222,0,224,1],[225,0,227,1],[213,8,221,8],[222,8,224,8],[225,8,227,8],[213,2,215,2],[213,3,215,5],[216,3,218,5],[219,3,221,5],[219,6,221,6],[219,7,221,7],[216,6,218,6],[216,7,218,7],[216,0,218,1],[219,0,221,1],[213,6,215,6],[213,7,215,7],[228,0,230,1],[231,0,233,1],[234,0,236,1],[237,0,239,1],[240,0,242,1],[243,0,245,1],[243,2,245,2],[240,2,242,2],[237,2,239,2],[237,3,239,5],[240,3,242,5],[228,2,230,2],[225,2,227,2],[222,2,224,2],[219,2,221,2],[216,2,218,2],[228,8,236,8],[234,2,236,2],[231,2,233,2],[222,3,224,5],[225,3,227,5],[237,8,245,8],[247,0,247,6],[248,0,301,8],[120,6,120,8],[1,0,1,8],[228,6,230,6],[228,7,230,7],[225,6,227,6],[225,7,227,7],[222,6,224,6],[222,7,224,7],[237,6,239,6],[237,7,239,7],[234,6,236,6],[234,7,236,7],[231,6,233,6],[231,7,233,7],[243,3,245,5],[243,6,245,6],[243,7,245,7],[240,6,242,6],[240,7,242,7],[228,3,230,5],[231,3,233,5],[234,3,236,5]]}
["MINISTERUL AGRICULTURII ŞI DEZVOLTĂRII RURALE\nAGENŢIA PENTRU FINANŢAREA INVESTIŢIILOR RURALE                       "]
[" ASOCIATIA GRUPUL DE ACȚIUNE LOCALĂ BANATUL DE NORD         Apel de selectie nr. 1/August 2017"]
["Cererea de Finantare - M1/6B - Versiunea 01"]
[null,null,null,null,null,null,"SECŢIUNE GENERALĂ"]
[]
["DATE DE ÎNREGISTRARE",null,null,null,null,null,"NUME ŞI PRENUME DIRECTOR GENERAL ADJUNCT CRFIR"]
["Se completează de către Agenția pentru Finanțarea Investițiilor Rurale "]
["Centrul Regional- Programul FEADR 2014-2020"]
[]
["CRFIR",null,null,null,null,null,"Semnătura Director General Adjunct CRFIR\n\n\n"]
["Număr\ninregistrare",null,null,null,null,null,"Ştampila CRFIR"]
[]
["Data Înregistrării"]
["Numele şi prenumele persoanei care înregistrează: "]
[]
["Semnătura:"]
[]
["Data primirii cererii de finanţare la contractare:"]
["Se completează de către solicitant"]
["A. PREZENTARE GENERALĂ"]
[]
["A1 Măsura"]
[]
[]
["Tip investitie:"]
[]
[]
[]
[]
[]
[]
[]
[]
[]
[]
[]
[]
[]
[]
[]
[]
["Conţinutul cadru al documentaţiei tehnico-economice faza SF/DALI conform : "]
[]
["A2 Denumire solicitant:"]
[]
[]
["A3 Titlu proiect:"]
[]
[]
[]
["A4 Descrierea succintă a proiectului:"]
[]
[]
[]
[]
[]
[]
[]
["A5 Amplasarea proiectului:"]
[]
["Regiunea de dezvoltare:",null,null,null,null,null,"Judet"]
[]
["Obiectivele investiţiei",null,null,"Judet","Comuna/Oras",null,"Sat","Sat"]
[]
[]
[]
[]
[]
[]
[]
[]
[]
[]
[]
[]
[]
[]
[]
[]
[]
[]
[]
[]
[]
[]
[]
[]
[]
[]
[]
[]
[]
["A6 Date despre tipul de proiect şi beneficiar:\n \n\n \nA6 Date despre tipul de proiect şi beneficiar:\n \n"]
["A 6.1",null,null,null,"A 6.2"]
[]
[]
["A 6.3"]
[]
[]
["A7 Date despre consultant:"]
["Denumire:"]
[]
["      Cod Unic de Înregistrare / Codul de Înregistrare Fiscală",null,null,null,null,"Număr de înregistrare în registrul comerțului"]
[]
[]
["A8 Date despre proiectant:"]
["Denumire:"]
[]
[" Cod Unic de Înregistrare / Codul de Înregistrare Fiscală",null,null,null,null,"Număr de înregistrare în registrul comerțului"]
[]
[]
[]
[]
["B INFORMAŢII PRIVIND SOLICITANTUL"]
["B1 Descrierea solicitantului"]
[]
["B1.1 Informaţii privind solicitantul"]
["Data înființării",null,"Cod Unic de Înregistrare și/sau Codul de Înregistrare Fiscală",null,null,null,null,"Statut juridic al solicitantului"]
[]
[]
[null,null,null,"Număr de înregistrare în registrul comerțului"]
[]
["* Codul unic de înregistrare APIA",null,null,null,null,null,"Anul atribuirii codului"]
[]
[]
["Nr. comune ADI"]
[]
["Denumire comune solicitant",null,null,null,null,"Cod Unic de Înregistrare / Cod de Înregistrare Fiscală"]
[]
[]
[]
["Denumire comune solicitant",null,null,null,null,"Cod Unic de Înregistrare / Cod de Înregistrare Fiscală"]
[]
[]
[]
["Denumire comune solicitant",null,null,null,null,"Cod Unic de Înregistrare / Cod de Înregistrare Fiscală"]
[]
[]
[]
[]
["B1.2 Sediul social / Domiciliul stabil al solicitantului / Reşedinţa din România"]
[]
["Judetul",null,"            Localitate",null,null,null,"Sat"]
[]
[]
["Cod poştal",null,null,"Strada",null,null,null,null,"Nr."]
[]
[]
["Bloc",null,"Scara"]
[]
[]
["Telefon fix / mobil",null,null,"Fax",null,null,"Email"]
[]
[]
["B1.3 Numele şi prenumele reprezentantului legal şi funcţia acestuia în cadrul organizaţiei, precum şi specimenul de semnătură:"]
["Nume",null,"Prenume",null,"Functie","           Reprezentant legal",null,"Specimen de semnatura"]
[]
[null,null,null,null,null,"LEGAL"]
[]
[]
["B2 Informaţii referitoare la reprezentantul legal de proiect"]
["B2.1 Date de identitate ale reprezentantului legal de proiect"]
[]
["Data nasterii",null,null,null,null,"Codul numeric personal"]
[]
[]
["Act de identitate",null,null,"Seria:","Numarul","Eliberat la data de:","de:",null,"Valabil pana la:"]
["BI","CI","Pasaport"]
[]
[]
[]
[]
[]
[]
[]
[]
["B2.2 Domiciliul stabil al reprezentantului legal de proiect"]
[]
["Judet",null,null,"Localitate",null,null,null,"Sat"]
[]
[]
["Cod postal",null,"Strada",null,"Nr.",null,"Bloc","Scara","Ap."]
[]
[]
["Telefon fix",null,null,"Telefon mobil",null,null,null,"Fax"]
[]
[null,"Email:"]
[]
[]
[]
["B3 Informaţii privind contul bancar pentru proiect "]
[]
["B3.1 Denumirea Băncii",null,null,null,null,"Denumirea Sucursalei/Filialei"]
[]
[]
[]
["B3.2 Adresa Băncii/Sucursalei"]
[]
[]
[]
["B3.3 Cod IBAN",null,null,null,null,"B3.4 Titularul contului bancar"]
[]
[]
[]
[]
[]
["C FINANȚĂRI NERAMBURSABILE OBȚINUTE, SAU SOLICITATE ?"]
["Dacă au fost obținute finanțări nerambursabile sau au fost solicitate și au fost obținute parțial, se vor detalia prin completarea tabelului de mai jos."]
[]
[]
["DENUMIRE PROGRAM\nFINANȚARE ",null,"DA",null,null,null,null,null,"NU"]
[null,null,"Numar proiecte","Titlul Proiectui și numărul contractului de finanțare",null,null,"Data finalizării ll/zz/aaaa","Valoarea sprijinului (EURO)"]
[]
["Program National *"]
[]
[]
["Program National *"]
[]
[]
["Program National *"]
[]
[]
["SAPARD"]
[]
[]
["FEADR"]
[]
[]
["Alte programe europene *"]
[]
[]
["Alte programe europene *"]
[]
[]
["Alte programe europene *"]
[]
[]
["Alte programe internationale*"]
[]
[]
["Alte programe internationale*"]
[]
[]
["Alte programe internationale*"]
[]
[]
[]
["* se completează de către solicitant cu denumirea programului"]
["                                REGULI DE COMPLETARE\n\n                                                                                                                                                                                                         Câmpurile \"Numele şi prenumele persoanei care înregistrează. Semnătura\", se vor completa după data primirii în format tipărit a acesteia împreună cu documentele justificative.\n\nCompletati devizele aferente capitolelor de cheltuieli, defalcat pe cheltuieli eligibile si neeligibile prin completarea tabelelor incluse in acest document, respectiv :\n\n1. Tabelul \"Deviz financiar_cap3\" cuprinde cheltuielile aferente capitolului 3 - Cheltuieli pentru proiectare si asistenta tehnica, cheltuieli care trebuie sa se regaseasca atat in Bugetul Indicativ (Tabel \"Buget indicativ\" din cererea de finantare, partea specifica), cat si in Dezivul General din Studiul de Fezabilitate/Documentatia de avizare a Lucrarilor pentru Interventii.\n\n2. Tabelul \"Devize obiect\" cuprinde formatul cadru al devizului pe obiect, iar solicitantul va completa atatea devize pe obiect cate obiecte definite de proiectant sunt incluse in proiect. Suma tuturor devizelor pe obiect trebuie sa se regaseasca atat in Bugetul Indicativ (tabelul \"Buget indicativ\" din cererea de finantare, partea specifica), cat si in Dezivul General din Studiul de Fezabilitate/Documentatia de avizare a Lucrarilor pentru Interventii\nIn cazul in care proiectul de investitii presupune mai multe devize pe obiect, solicitantul va crea in documentul curent cate o copie a tabelului \"Devize obiect\" pentru fiecare deviz pe obiect si va detalia cheltuielile eligibile si neeligibile pe fiecare in parte.\n\n3. Tabelul \"cap.2+cap.5\" cuprinde cheltuieli aferente capitolelor 2 si 5 si trebuie sa se regaseasca atat in Bugetul Indicativ (tabel \"Buget indicativ\" din cererea de finantare, partea specifica), cat si Dezivul General din Studiul de Fezabilitate/Documentatia de avizare a Lucrarilor pentru Interventii.\n\n\n\n4. Pentru proiectele care vizeaza 2 componente in urmatoarele variante:\n• Modernizare o componenta/extindere componenta complementara\n• Infiintare o componenta/extindere componenta complementara\n• Infiintare o componenta/modernizare componenta complementara\n• Modernizare o componenta/modernizare componenta complementara\nLa punctul A6.1 se vor considera lucrari de interventie .\n\n5. Pentru proiectele care vizeaza 2 componente, ambele extindere, la punctul A6.1 se va considera investitie noua .\n\n\n\n\nDocumentele (3.1, 3.2, 3.3, 5, 7.2, 7.2.1, 11.1, 11.2, 12, 14.1, 14.2, 14.3, 14.4, 15, 20) de pe coloana DEPUNERE - Obligatoriu daca proiectul o impune\", din sectiunea E – Lista documentelor anexate - trebuie bifate şi anexate daca proiectul o impune.\n\nTrebuie bifate si anexate toate documentele (1, 2.1, 6, 7.1, 13, 16) de pe coloana “DEPUNERE - Obligatoriu pentru toate proiectele” din sectiunea E – Lista documentelor anexate.\n\n\n\n\n\n"]

{"sheet":"Buget indicativ si Anexe","index":1,"n_rows":214,"n_cols":9,"rows_kept":214,"cut":false,"hidden":false,"merged":[[7,4,7,6],[10,0,10,5],[11,0,11,5],[1,0,1,3],[12,0,12,5],[13,0,13,5],[214,1,214,6],[3,0,3,8],[4,0,4,8],[7,7,7,8],[9,0,9,5],[91,6,91,8],[138,6,138,8],[181,6,181,8],[6,4,6,6],[7,0,7,1],[19,0,19,5],[69,0,69,5],[31,0,31,5],[32,0,32,5],[33,0,33,5],[36,0,36,5],[37,0,37,5],[14,0,14,5],[15,0,15,5],[16,0,16,5],[18,0,18,5],[20,0,20,5],[24,0,24,5],[40,0,40,5],[65,0,65,5],[46,0,46,5],[47,0,47,5],[48,0,48,5],[64,0,64,5],[60,0,60,5],[44,0,44,5],[25,0,25,5],[34,0,34,5],[35,0,35,5],[17,0,17,5],[21,0,21,5],[22,0,22,5],[23,0,23,5],[26,0,26,5],[27,0,27,5],[28,0,28,5],[29,0,29,5],[75,0,75,5],[41,0,41,5],[42,0,42,5],[61,0,61,5],[62,0,62,5],[70,0,70,5],[49,0,49,5],[50,0,50,5],[56,0,56,5],[57,0,57,5],[58,0,58,5],[59,0,59,5],[72,0,72,5],[68,0,68,5],[73,0,73,5],[51,0,51,5],[30,0,30,5],[74,0,74,5],[66,0,66,5],[67,0,67,5],[43,0,43,3],[43,5,43,8],[83,0,83,5],[45,0,45,5],[81,0,81,5],[82,0,82,5],[76,0,76,5],[77,0,77,5],[78,0,78,5],[79,0,79,5],[80,0,80,5],[67,6,67,8],[72,6,72,8],[52,0,52,5],[53,0,53,5],[54,0,54,5],[55,0,55,5],[63,0,63,5],[39,0,39,5],[38,0,38,5],[84,0,84,5],[84,7,84,8],[85,0,85,5],[85,7,85,8],[86,0,86,5],[86,7,86,8],[103,1,103,6],[110,1,110,6],[111,1,111,6],[109,1,109,6],[131,1,131,6],[120,1,120,6],[121,1,121,6],[122,1,122,6],[123,1,123,6],[129,1,129,6],[130,1,130,6],[119,1,119,6],[124,1,124,6],[125,1,125,6],[126,1,126,6],[127,1,127,6],[128,1,128,6],[154,1,154,6],[155,1,155,6],[157,1,157,6],[166,0,166,8],[156,1,156,6],[158,1,158,6],[159,1,159,6],[160,1,160,6],[134,7,134,8],[143,0,143,6],[144,1,144,6],[145,1,145,6],[146,1,146,6],[147,1,147,6],[139,1,139,6],[139,7,139,8],[140,0,140,8],[141,1,141,6],[142,1,142,6],[142,7,142,8],[132,0,132,6],[161,1,161,6],[162,0,162,8],[133,0,133,6],[169,1,169,2],[114,1,114,6],[115,1,115,6],[116,1,116,6],[117,1,117,6],[168,1,168,2],[168,4,168,5],[148,1,148,6],[134,0,134,6],[135,1,135,6],[118,1,118,6],[169,4,169,5],[167,1,167,2],[167,4,167,5],[161,7,161,8],[149,1,149,6],[150,0,150,6],[151,1,151,6],[152,1,152,6],[153,0,153,6],[192,1,192,6],[196,0,196,6],[196,7,196,8],[191,1,191,6],[170,1,170,2],[170,4,170,5],[171,0,172,8],[174,0,174,2],[174,3,174,8],[183,0,183,8],[184,1,184,6],[185,1,185,6],[186,1,186,6],[187,1,187,6],[188,1,188,6],[189,1,189,6],[190,1,190,6],[176,0,176,2],[176,3,176,8],[182,7,182,8],[208,1,208,6],[209,1,209,6],[213,0,213,6],[213,7,213,8],[193,1,193,6],[194,0,194,6],[195,0,195,6],[210,1,210,6],[211,0,211,6],[212,0,212,6],[197,1,197,6],[198,0,198,6],[205,1,205,6],[206,1,206,6],[207,1,207,6],[199,1,199,6],[200,1,200,6],[201,1,201,6],[202,1,202,6],[203,1,203,6],[204,1,204,6],[112,1,112,6],[113,1,113,6],[92,7,92,8],[93,0,93,8],[94,0,94,8],[95,1,95,6],[96,1,96,6],[100,1,100,6],[101,1,101,6],[102,1,102,6],[104,1,104,6],[105,1,105,6],[106,1,106,6],[107,1,107,6],[108,1,108,6],[97,1,97,6],[98,1,98,6],[99,1,99,6]]}
[]
["Buget indicativ- HG 907/2016"]
[]
["MINISTERUL AGRICULTURII ŞI DEZVOLTĂRII RURALE"]
["AGENŢIA PENTRU FINANŢAREA INVESTIŢIILOR RURALE"]
[]
[null,null,null,null,"Data intocmirii devizului general"]
["Curs Euro",null,null,null,"din SF/DALI"]
[]
["Măsura",null,null,null,null,null,"1/6B"]
["Denumirea capitolelor de cheltuieli",null,null,null,null,null,"Cheltuieli eligibile","Cheltuieli neeligibile","TOTAL"]
[null,null,null,null,null,null,"EURO","EURO","EURO"]
[1,null,null,null,null,null,2,3,4]
["Capitolul 1 Cheltuieli pentru obtinerea şi amenajarea terenului - total, din care:",null,null,null,null,null,{"$f":"G15+G16+G17+G18","v":0},{"$f":"H15+H16+H17+H18","v":0},{"$f":"G14+H14","v":0}]
["1.1 Obţinerea terenului",null,null,null,null,null,null,null,0]
["1.2 Amenajarea terenului",null,null,null,null,null,null,null,0]
["1.3 Amenajari pentru protecţia mediului şi aducerea terenului la starea iniţială",null,null,null,null,null,null,null,0]
["1.4 Cheltuieli pentru realocarea/protecția utilităților",null,null,null,null,null,null,null,0]
["Capitolul 2 Cheltuieli pentru asigurarea utilităţilor necesare obiectivului de investiții",null,null,null,null,null,null,null,0]
["Capitolul 3 Cheltuieli pentru proiectare şi asistenţă tehnică - total, din care:",null,null,null,null,null,{"$f":"G21+G25+G26+G27+G28+G36+G39","v":0},{"$f":"H21+H25+H26+H27+H28+H35+H36+H39","v":0},{"$f":"I21+I25+I26+I27+I28+I35+I36+I39","v":0}]
["3.1 Studii ",null,null,null,null,null,{"$f":"SUM(G22:G24)","v":0},{"$f":"SUM(H22:H24)","v":0},{"$f":"G21+H21","v":0}]
["       3.1.1. Studii de teren",null,null,null,null,null,null,null,0]
["       3.1.2. Raport privind impactul asupra mediului",null,null,null,null,null,null,null,0]
["       3.1.3. Alte studii specifice",null,null,null,null,null,null,null,0]
["3.2 Documentații-suport și cheltuieli pentru obţinerea de avize, acorduri şi autorizaţii",null,null,null,null,null,null,null,0]
["3.3 Expertiza tehnica",null,null,null,null,null,null,null,0]
["3.4. Certificarea performantei energetice si auditul energetic al clădirilor",null,null,null,null,null,null,null,0]
["3.5. Proiectare",null,null,null,null,null,{"$f":"SUM(G29:G34)","v":0},{"$f":"SUM(H29:H34)","v":0},{"$f":"SUM(G28:H28)","v":0}]
["     3.5.1. Temă de proiectare",null,null,null,null,null,null,null,0]
["     3.5.2. Studii de prefezabilitate",null,null,null,null,null,null,null,0]
["     3.5.3. Studii de fezabilitate/documentație de avizare a lucrărilor de intervenții si deviz general",null,null,null,null,null,null,null,0]
["     3.5.4. Documentațiile tehnice necesare în vederea obținerii avizelor/acordurilor/autorizațiilor",null,null,null,null,null,null,null,0]
["     3.5.5. Verificarea tehnică de calitate a proiectului tehnic și a detaliilor de execuție",null,null,null,null,null,null,null,0]
["     3.5.6. Proiect tehnic si detalii de execuție",null,null,null,null,null,null,null,0]
["3.6. Organizarea procedurilor de achiziţie",null,null,null,null,null,null,null,{"$f":"H35","v":0}]
["3.7 Consultanţă",null,null,null,null,null,{"$f":"G37","v":0},{"$f":"H37+H38","v":0},{"$f":"G36+H36","v":0}]
["     3.7.1. Managementul de proiect pentru obiectivul de investiții",null,null,null,null,null,null,null,{"$f":"G37+H37","v":0}]
["     3.7.2. Auditul financiar",null,null,null,null,null,null,null,{"$f":"H38","v":0}]
["3.8 Asistenţă tehnică",null,null,null,null,null,{"$f":"G40+G43","v":0},{"$f":"H40+H43","v":0},{"$f":"G39+H39","v":0}]
["    3.8.1. Asistență tehnică din partea proiectantului",null,null,null,null,null,{"$f":"G41+G42","v":0},{"$f":"H41+H42","v":0},{"$f":"G40+H40","v":0}]
["        3.8.1.1. pe perioada de execuție a lucrărilor",null,null,null,null,null,null,null,{"$f":"G41+H41","v":0}]
["        3.8.1.2. pentru participarea proiectantului la fazele incluse în programul de control al lucrărilor de execuție,avizat de către Inspectoratul de Stat în Construcții",null,null,null,null,null,null,null,{"$f":"G42+H42","v":0}]
["    3.8.2. Dirigenție de șantier",null,null,null,null,null,null,null,{"$f":"G43+H43","v":0}]
["Verificare încadrare cheltuieli capitolul 3",null,null,null,"max. 10%",{"$f":"G20/G67*100","v":{"$error":"#DIV/0!"}}]
["Capitolul 4 Cheltuieli pentru investiţia de bază - total, din care:",null,null,null,null,null,{"$f":"G46+G47+G48+G49+G50+G51","v":0},{"$f":"H46+H47+H48+H49+H50+H51","v":0},{"$f":"G45+H45","v":0}]
["4.1 Construcţii şi instalaţii",null,null,null,null,null,null,null,0]
["4.2 Montaj utilaje, echipamente tehnologice și funcțiomale",null,null,null,null,null,null,null,0]
["4.3 Utilaje, echipamente tehnologice şi funcţionale care necesită montaj ",null,null,null,null,null,null,null,0]
["4.4 Utilaje, echipamente tehnologice și funcționale care nu necesită montaj și echipamente de transport",null,null,null,null,null,null,null,0]
["4.5 Dotări",null,null,null,null,null,null,null,0]
["4.6 Active necorporale",null,null,null,null,null,null,null,0]
["Capitolul 5 Alte cheltuieli - total, din care:",null,null,null,null,null,{"$f":"G53+G56+G63","v":0},{"$f":"H53+H56+H62+H63","v":0},0]
["5.1 Organizare de şantier",null,null,null,null,null,{"$f":"G54+G55","v":0},{"$f":"H54+H55","v":0},0]
["5.1.1 lucrări de construcţii şi instalaţii aferente organizării de şantier",null,null,null,null,null,null,null,0]
["                          5.1.2 cheltuieli conexe orgănizării şantierului",null,null,null,null,null,null,null,0]
["5.2 Comisioane, cote, taxe, costul creditului",null,null,null,null,null,{"$f":"G58+G59+G61","v":0},{"$f":"H57+H58+H59+H60+H61","v":0},0]
["    5.2.1. Comisioanele și dobânzile aferente creditului băncii finanțatoare",null,null,null,null,null,null,null,{"$f":"H57","v":0}]
["    5.2.2. Cota aferentă ISC pentru controlul calitații lucrărilor de construcții",null,null,null,null,null,null,null,{"$f":"G58+H58","v":0}]
["    5.2.3. Cota aferentă ISC pentru controlul statului în amenajarea teritoriului, urbanism și pentru autorizarea lucrărilor de constructii",null,null,null,null,null,null,null,{"$f":"G59+H59","v":0}]
["    5.2.4. Cota aferentă Casei Sociale a Constructorilor - CSC",null,null,null,null,null,null,null,{"$f":"H60","v":0}]
["    5.2.5. Taxe pentru acorduri, avize conforme și autorizația de construire/desființare",null,null,null,null,null,null,null,{"$f":"G61+H61","v":0}]
["5.3 Cheltuile diverse și neprevăzute",null,null,null,null,null,null,null,{"$f":"H62","v":0}]
["5.4 Cheltuieli pentru informare și publicitate",null,null,null,null,null,null,null,{"$f":"G63+H63","v":0}]
["Capitolul 6 Cheltuieli pentru probe tehnologice și teste - total, din care:",null,null,null,null,null,{"$f":"G66","v":0},{"$f":"H66+H65","v":0},{"$f":"G64+H64","v":0}]
["6.1 Pregătirea personalului de exploatare",null,null,null,null,null,null,null,{"$f":"H65","v":0}]
["6.2 Probe tehnologice şi teste",null,null,null,null,null,null,null,{"$f":"G66+H66","v":0}]
["TOTAL  GENERAL",null,null,null,null,null,{"$f":"G14+G19+G20+G45+G52+G64","v":0},{"$f":"H14+H19+H20+H45+H52+H64","v":0},{"$f":"G67+H67","v":0}]
["Verificare actualizare - actualizare mai mică de 5% din valoarea eligibila",null,null,null,null,null,{"$f":"G69/G67*100","v":{"$error":"#DIV/0!"}}]
["ACTUALIZARE Cheltuieli Eligibile (max 5%)",null,null,null,null,null,null,null,{"$f":"G69","v":0}]
["TOTAL GENERAL CU ACTUALIZARE",null,null,null,null,null,{"$f":"G67+I69","v":0},{"$f":"H67","v":0},{"$f":"G70+H70","v":0}]
["Valoare TVA",null,null,null,null,null,null,null,{"$f":"G71+H71","v":0}]
[]
["TOTAL GENERAL inclusiv TVA",null,null,null,null,null,{"$f":"I70+I71","v":0}]
[null,null,null,null,null,null,"LEI","EURO"]
["VALOARE TOTALĂ",null,null,null,null,null,{"$f":"H75*C8","v":0},{"$f":"G73","v":0}]
["VALOARE ELIGIBILĂ",null,null,null,null,null,{"$f":"H76*C8","v":0},{"$f":"G70","v":0}]
["VALOARE NEELIGIBILĂ",null,null,null,null,null,{"$f":"H77*C8","v":0},{"$f":"H75-H76","v":0}]
["PLAN FINANCIAR",null,null,null,null,null,"Cheltuieli eligibile  EURO","Cheltuieli neeligibile  EURO","Total"]
["Ajutor public nerambursabil (contribuţie UE şi cofinanţare naţională)",null,null,null,null,null,null,null,{"$f":"G79","v":0}]
["Cofinanțare privată, din care:",null,null,null,null,null,{"$f":"G81+G82","v":0},{"$f":"H81+H82","v":0},{"$f":"G80+H80","v":0}]
["                                                       - autofinantare",null,null,null,null,null,null,null,{"$f":"G81+H81","v":0}]
["                                                       - imprumuturi",null,null,null,null,null,null,null,{"$f":"G82+H82","v":0}]
["Buget local",null,null,null,null,null,null,null,{"$f":"G83+H83","v":0}]
["TOTAL PROIECT",null,null,null,null,null,{"$f":"G79+G80+G83","v":0},{"$f":"H80+H83","v":0},{"$f":"G84+H84","v":0}]
["Procent contribuţie publică",null,null,null,null,null,{"$f":"G79/G84*100","v":{"$error":"#DIV/0!"}},"%"]
["Avans solicitat"]
["Procent avans solicitat ca procent din ajutorul public nerambursabil",null,null,null,null,null,{"$f":"G86/G79*100","v":{"$error":"#DIV/0!"}},"Suma avans mai mica  de 50% din ajutorul public"]
[]
[]
[]
[]
[null,null,null,null,null,null,"Anexa A1 - HG 907/2016"]
[null,null,null,null,null,null,null,"August 2017"]
["Deviz financiar- Capitolul 3 - Cheltuieli pentru proiectare şi asistenţa tehnică - EURO"]
[]
["Nr. Crt","Specificatie",null,null,null,null,null,"Valoare eligibila","Valoare neeligibila"]
[3.1,"Cheltuieli pentru studii - total din care",null,null,null,null,null,{"$f":"SUM(H98:H100)","v":0},{"$f":"SUM(I98:I100)","v":0}]
[null,"3.1.1 Studii de teren: studii geotehnice, geologice, hidrologice, hidrogeotehnice, fotogrammetrice, topografice şi de stabilitate a terenului pe care se amplasează obiectivul de investiţie"]
[null,"3.1.2 Raport privind impactul asupra mediului"]
[null,"3.1.3. Studii de specialitate necesare în funcție de specificul investiției"]
[3.2,"Documentații-suport și cheltuieli pentru obţinerea de avize, acorduri şi autorizaţii",null,null,null,null,null,{"$f":"H102+H103+H104+H107+H108+H109+H110","v":0},{"$f":"I102+I103+I104+I105+I106+I107+I108+I109+I110","v":0}]
[null,"1. obţinerea/prelungirea valabilităţii ceritificatului de urbanism"]
[null,"2. obţinerea/prelungirea valabilităţii autorizaţiei de construire/ desfiinţare"]
[null,"3. obţinerea avizelor şi acordurilor pentru racorduri şi branşamente la reţelele publice de alimentare cu apă, canalizare, alimentare cu gaze, alimentare cu agent termic, energie electrică, telefonie"]
[null,"4. obţinerea certificatului de nomenclatură stradală şi adresă"]
[null,"5. întocmirea documentaţiei, obţinerea numărului cadastral provizoriu şi înregistrarea terenului în Cartea Funciară"]
[null,"6. obţinerea actului administrativ al autorității competente pentru protecția mediului"]
[null,"7. obţinerea avizului de protecție civilă"]
[null,"8. avizul de specialitate în cazul obiectivelor de patrimoniu"]
[null,"9. alte avize, acorduri şi autorizaţii "]
[3.3,"Cheltuieli pentru expertizarea tehnică a construcțiilor existente, a structurilor și/sau, după caz, a proiectelor tehnice, inclusiv întocmirea de către expertul tehnic a raportului de expertiză tehnică"]
[3.4,"Cheltuieli pentru certificarea performanței energetice și auditul energetic al clădirilor"]
[3.5,"Cheltuieli pentru proiectare",null,null,null,null,null,{"$f":"SUM(H114:H119)","v":0},{"$f":"SUM(I114:I119)","v":0}]
[null,"3.5.1 Temă de proiectare"]
[null,"3.5.2 Studiu de prefezabilitate"]
[null,"3.5.3 Studiu de fezabilitate/documentație de avizare a lucrărilor de intervenții și deviz general"]
[null,"3.5.4 Documentațiile tehnice necesare în vederea obținerii avizelor / acordurilor / autorizațiilor"]
[null,"3.5.5 Verificarea tehnică de calitate a proiectului tehnic și a detaliilor de execuție"]
[null,"3.5.6 Proiect tehnic și detalii de execuție"]
[3.6,"Cheltuieli aferente organizării și derularii procedurilor de achiziții publice",null,null,null,null,null,null,{"$f":"SUM(I121:I124)","v":0}]
[null,"1. Cheltuieli aferente întocmirii documentației de atribuire și multiplicării acesteia (exclusiv cele cumparate de ofertant)"]
[null,"2. Cheltuieli cu onorariile, transportul, cazarea și diurna membrilor desemnați în comisiile de evaluare"]
[null,"3. Anunțuri de intenție, de participare și de atribuire a contractelor, corespondență prin poștă, fax, poștă electronică în legătură cu procedurile de achiziție publică"]
[null,"4. Cheltuieli aferente organizării și derulării procedurilor de achiziție publică"]
[3.7,"Cheltuieli pentru consultanţă ",null,null,null,null,null,{"$f":"H126","v":0},{"$f":"I126+I127","v":0}]
[null,"3.7.1 Managementul de proiect pentru obiectivul de investiții"]
[null,"3.7.2 Auditul financiar"]
[3.8,"Cheltuieli pentru asistenţa tehnică",null,null,null,null,null,{"$f":"H129+H132","v":0},{"$f":"I129+I132","v":0}]
[null,"3.8.1 Asistență tehnică din partea proiectantului",null,null,null,null,null,{"$f":"H130+H131","v":0},{"$f":"I130+I131","v":0}]
[null,"1.1. pe perioada de execuție a lucrărilor"]
[null,"1.2 pentru participarea proiectantului la fezele incluse în programul de control al lucrărilor de execuție, avizat de către Inspectoratul de Stat în Construcții"]
[null,"3.8.2. Dirigenție de șantier, asigurată de personal tehnic de specialitate, autorizat"]
["Total valoare fără TVA",null,null,null,null,null,null,{"$f":"H97+H101+H111+H112+H113+H120+H125+H128","v":0},{"$f":"I97+I101+I111+I112+I113+I120+I125+I128","v":0}]
["Valoare TVA (aferentă cheltuielilor eligibile şi neeligibile)"]
["         TOTAL DEVIZ FINANCIAR 1 (inclusiv TVA)",null,null,null,null,null,null,{"$f":"H133+H134+I133+I134","v":0}]
[]
[]
[]
[null,null,null,null,null,null,"Anexa A2 - HG 907/2016"]
[null,null,null,null,null,null,null,"August 2017"]
["DEVIZ PE OBIECT*"]
[]
["Nr.crt","Denumire",null,null,null,null,null,"Valoarea pe categorii de lucrări, fară TVA - EURO"]
[" Cap. 4 + Cheltuieli pentru investiția de bază                                                                                                             I – LUCRARI DE CONSTRUCTII SI INSTALATII",null,null,null,null,null,null,"Valoare eligibila","Valoare neeligibila"]
[4.0999999999999996,"Construcții și intalații"]
[null,"4.1.1 Terasamente, sistematizare pe verticală și amenajări exterioare"]
[null,"4.1.2 Rezistență"]
[null,"4.1.3 Arhitectură"]
[null,"4.1.4 Instalații"]
[null,"TOTAL I (fara TVA)",null,null,null,null,null,{"$f":"SUM(H146:H149)","v":0},{"$f":"SUM(I146:I149)","v":0}]
["     II - MONTAJ"]
[4.2,"Montaj utilaje, echipamente tehnologice și funcționale"]
[null,"TOTAL II (fara TVA)",null,null,null,null,null,{"$f":"H152","v":0},{"$f":"I152","v":0}]
["    III - PROCURARE"]
[4.3,"Utilaje, echipamente tehnologice și funcționale care necesită montaj"]
[4.4000000000000004,"Utilaje, echipamente tehnologice și funcționale care nu necesită montaj și echipamente de transport"]
[4.5,"Dotări"]
[4.5999999999999996,"Active necorporale"]
[null,"TOTAL III (fara TVA)",null,null,null,null,null,{"$f":"SUM(H155:H158)","v":0},{"$f":"SUM(I155:I158)","v":0}]
[null,"TOTAL ( TOTAL I + TOTAL II +TOTAL III) fără TVA",null,null,null,null,null,{"$f":"H150+H153+H159","v":0},{"$f":"I150+I153+I159","v":0}]
[null,"TVA aferent cheltuielilor eligibile şi neeligibile"]
[null,"TOTAL DEVIZ PE OBIECT (inclusiv TVA)",null,null,null,null,null,{"$f":"H160+I160+H161+I161","v":0}]
["*) Se înscrie denumirea obiectului de construcţie sau intervenţie"]
[]
[]
[]
["Situaţia achiziţiilor publice efectuate până la depunerea Cererii de finanţare cu respectarea condiţiilor de eligibilitate a cheltuielilor prevăzute în fişa masurii M1/6B"]
["Nr.crt","Obiectul contractului",null,"Valoarea reala LEI","Procedura aplicata",null,"Data începerii procedurii (zz/ ll/aaaa)","Data finalizarii procedurii (zz/ ll/aaaa)","Stadiul procedurii"]
[1,"Servicii de consultanta"]
[2,"Elaborarea Studiului de Fezabilitate"]
[3]
["Declar pe proprie raspundere ca informatiile din tabelul  de mai sus sunt corecte si ca la atribuirea contractelor de servicii mentionate au fost respectate prevederile legislatiei nationale in vigoare privind procedura de achizitie publica"]
[]
[]
["Reprezentant legal, Nume/Prenume"]
[]
["Semnatura si ştampila"]
[]
[]
[]
[]
[null,null,null,null,null,null,"Anexa A3 - HG 907/2016"]
[null,null,null,null,null,null,null,"August 2017"]
["Deviz capitolul 2- Cheltuieli pentru asigurarea utilităţilor necesare obiectivului - EURO"]
["Nr.crt","Specificatie",null,null,null,null,null,"Valoare \neligibilă\n","Valoare\n neeligibilă\n"]
[1,"Alimentare cu apa"]
[2,"Canalizare"]
[3,"Alimentare cu gaze naturale"]
[4,"Alimentare cu agent termic"]
[5,"Alimentare cu energie electrica"]
[6,"Telecomunicatii (telefonie, radio-tv, etc.)"]
[7,"Drumuri de acces"]
[8,"Căi ferate industriale"]
[9,"Alte utilități"]
["TOTAL DEVIZ CAPITOLUL 2",null,null,null,null,null,null,{"$f":"SUM(H186:H194)","v":0},{"$f":"SUM(I186:I194)","v":0}]
["Valoare TVA aferentă cheltuielilor eligibile și neeligibile"]
["         TOTAL DEVIZ CAPITOLUL 2 (inclusiv TVA)",null,null,null,null,null,null,{"$f":"H195+I195+H196+I196","v":0}]
[]
["Deviz capitolul 5 - Alte cheltuieli - EURO"]
["Nr.crt","Specificatie",null,null,null,null,null,"Valoare \neligibilă\n","Valoare\n neeligibilă\n"]
[5.0999999999999996,"Organizarea de santier",null,null,null,null,null,{"$f":"H202+H203","v":0},{"$f":"I202+I203","v":0}]
[null,"5.1.1 Lucrări de construcții și instalații aferente organizării de șantier"]
[null,"5.1.2 Cheltuieli conexe organizării de șantierului"]
[5.2,"Comisioane, cote, taxe, costul creditului",null,null,null,null,null,{"$f":"H206+H207+H209","v":0},{"$f":"SUM(I205:I209)","v":0}]
[null,"5.2.1 Comisioanele și dobănzile aferente creditului băncii finanțatoare"]
[null,"5.2.2 Cota aferenta ISC pentru controlul calității lucrărilor de construcții"]
[null,"5.2.3 Cota aferenta ISC pentru controlul statului în amenajarea teritoriului, urbanism si pentru autorizarea lucrarilor de constructii"]
[null,"5.2.4 Cota aferenta Casei sociale a Constructorilor - CSC"]
[null,"5.2.5 Taxe pentru acorduri, avize conforme și autorizația de construire/desființare"]
[5.3,"Cheltuieli diverse si neprevazute"]
[5.4,"Cheltuieli pentru informare și publicare"]
["TOTAL DEVIZ CAPITOLUL 5",null,null,null,null,null,null,{"$f":"H201+H204+H211","v":0},{"$f":"I201+I204+I210+I211","v":0}]
["Valoare TVA aferenta cheltuielilor eligibile si neeligibile"]
["TOTAL DEVIZ CAPITOLUL 5 (inclusiv TVA)",null,null,null,null,null,null,{"$f":"H212+I212+H213+I213","v":0}]

{"sheet":"Sectiunile D-F","index":2,"n_rows":259,"n_cols":9,"rows_kept":259,"cut":false,"hidden":false,"merged":[[143,0,143,2],[210,0,210,6],[163,0,163,7],[164,0,164,7],[165,0,165,7],[53,0,53,4],[142,3,142,7],[141,0,142,2],[146,8,147,8],[149,3,149,7],[143,3,143,7],[144,3,144,7],[145,3,145,7],[144,0,145,2],[111,0,113,8],[120,0,120,4],[120,6,120,7],[121,0,122,4],[121,6,122,7],[137,3,137,7],[131,0,139,2],[140,0,140,7],[193,0,194,5],[197,6,198,6],[155,10,155,15],[156,10,156,15],[157,10,157,15],[179,7,180,8],[179,0,180,5],[175,6,176,6],[170,0,170,8],[179,6,180,6],[175,0,176,5],[177,0,178,5],[173,6,174,6],[173,7,174,8],[173,0,174,5],[177,6,178,6],[177,7,178,8],[159,10,159,15],[152,0,159,8],[153,10,153,18],[154,10,154,15],[175,7,176,8],[171,7,172,8],[171,6,172,6],[171,0,172,5],[186,4,187,6],[184,4,185,6],[182,4,183,6],[195,7,196,8],[186,3,187,3],[193,6,194,6],[195,6,196,6],[195,0,196,5],[258,0,258,7],[239,0,239,1],[239,2,239,8],[242,1,242,3],[242,4,242,8],[243,0,243,8],[219,0,219,1],[219,3,219,8],[256,3,256,4],[244,0,251,8],[256,5,256,6],[256,0,256,2],[223,7,223,8],[225,7,225,8],[227,1,227,2],[227,4,227,5],[253,0,253,1],[253,2,253,6],[223,4,223,5],[241,4,241,5],[241,6,241,8],[238,0,238,1],[238,2,238,8],[220,0,220,2],[221,4,221,5],[221,7,221,8],[223,1,223,2],[229,0,229,5],[229,6,229,8],[227,7,227,8],[235,7,235,8],[233,5,233,6],[237,1,237,8],[231,2,231,5],[233,0,233,3],[216,0,216,1],[216,3,217,8],[213,0,213,8],[214,0,214,8],[182,0,183,1],[184,0,185,1],[186,0,187,1],[182,2,183,3],[184,3,185,3],[204,0,205,5],[206,0,209,8],[202,7,202,8],[203,7,203,8],[200,0,200,5],[200,7,200,8],[204,7,205,8],[204,6,205,6],[201,0,201,5],[202,0,202,5],[203,0,203,5],[201,7,201,8],[211,0,211,6],[212,2,212,6],[186,7,187,7],[8,0,8,3],[8,4,8,6],[8,7,8,8],[9,0,9,3],[10,0,10,3],[11,0,11,3],[2,0,2,3],[3,1,3,3],[4,1,4,3],[5,0,5,8],[6,0,6,6],[7,0,7,3],[20,0,20,3],[21,0,21,3],[22,0,22,3],[23,0,23,3],[24,0,24,3],[26,0,26,3],[12,0,12,3],[13,0,13,3],[16,0,16,3],[17,0,17,3],[18,0,18,3],[19,0,19,3],[14,0,14,3],[15,0,15,3],[32,0,32,3],[33,0,33,3],[34,0,34,3],[35,0,35,3],[36,0,36,3],[27,0,27,3],[28,0,28,3],[25,0,25,3],[29,0,29,3],[30,0,30,3],[31,0,31,3],[61,0,61,4],[61,5,61,8],[54,1,54,7],[37,0,37,3],[38,0,38,3],[39,0,39,3],[40,0,40,3],[41,0,41,3],[42,0,42,3],[43,0,43,3],[44,0,44,3],[51,0,51,8],[56,0,56,8],[57,0,58,8],[60,0,60,3],[45,0,45,3],[62,0,84,8],[85,0,87,8],[88,0,89,8],[90,0,92,8],[93,0,93,8],[115,0,116,8],[94,0,95,8],[96,0,96,8],[98,0,99,8],[100,0,100,8],[101,0,102,8],[103,0,105,8],[106,0,108,8],[109,0,109,8],[135,3,135,7],[136,3,136,7],[141,3,141,7],[129,0,129,8],[130,0,130,8],[131,3,131,7],[132,3,132,7],[133,3,133,7],[134,3,134,7],[138,3,138,7],[139,3,139,7],[151,3,151,7],[149,0,151,2],[150,3,150,7],[146,0,147,7],[148,0,148,7],[189,6,192,6],[197,0,198,5],[188,0,188,8],[199,0,199,8],[197,7,198,8],[182,7,183,8],[184,7,185,7],[184,8,185,8],[189,7,192,8],[189,0,192,5],[193,7,194,8],[162,0,162,7],[168,0,169,8],[160,0,160,8],[161,0,161,8],[186,8,187,8],[184,2,185,2],[181,0,181,8],[186,2,187,2]]}
[]
[]
["D. ALTE INFORMAȚII :"]
[null,"Programarea proiectului: "]
[null,"Numar luni de implementare",null,null,"\u001e"]
["E. LISTA DOCUMENTELOR ANEXATE PROIECTELOR AFERENTE  MĂSURII M1/6B                                    OPIS documente"]
["Documentele se vor anexa cererii de finanțare în ordinea de mai jos:"]
["Lista documente",null,null,null,"Obligatoriu pentru toate proiectele","Obligatoriu, dacă proiectul impune","\nPAGINA de la-până la\n","Obligatoriu pentru toate proiectele","Obligatoriu, dacă proiectul impune"]
["ETAPA:",null,null,null,"        DEPUNERE",null,null,"CONTRACTARE"]
["1. Studiu de Fezabilitate/Documentaţie de Avizare pentru Lucrări de Intervenţii, întocmite, avizate și verificate în condițiile legii și însoțite de toate studiile, expertizele, avizele și acordurile specifice fiecărui tip de investiție, conform reglementărilor legale în vigoare"]
["2.1 Certificat de Urbanism, completat și eliberat conform reglementărilor legale în vigoare și aflate în termenul de valabilitate la data depunerii cererii de finanțare"]
["3.1 Pentru comune și ADI\nInventarul bunurilor ce aparţin domeniului public al comunei/comunelor, întocmit conform legislaţiei în vigoare privind proprietatea publică şi regimul juridic al acesteia, atestat prin Hotărâre a Guvernului şi publicat în Monitorul Oficial al României."]
["si"]
["3.2 Hotărârea Consiliului Local privind aprobarea modificărilor şi / sau completărilor la inventar în sensul includerii în domeniul public sau detalierii poziției globale existente sau clasificării unor drumuri neclasificate, cu respectarea prevederilor Art. 115 alin (7) din Legea nr.215/ 2001, republicată, cu modificările şi completările ulterioare, a adm.publice locale, adică să fi fost supusă controlului de legalitate al Prefectului, în condiţiile legii"]
["si/sau"]
["3.3 Avizul administratorului terenului aparţinând domeniului public, altul decat cel administrat de primarie (dacă este cazul)"]
["3.4 Pentru ONG-uri\nDocumente doveditoare de către ONG-uri privind dreptul de proprietate / administrare pe o perioadă de 10 ani, asupra bunurilor imobile la care se vor efectua lucrări, conform cererii de finanţare"]
["4 Document care să ateste ca solicitantul a depus documentaţia la ANPM:"]
["4.1 Clasarea notificării                                                   sau"]
["4.2 Decizia etapei de încadrare, ca document final (prin care se precizează că proiectul nu se supune evaluării impactului asupra mediului şi nici evaluării adecvate)      \nsau"]
[]
["4.3 Acord de mediu în cazul în care se impune evaluarea impactului preconizat asupra mediului                  sau"]
[]
["4.4 Acord de mediu în cazul evaluării impactului asupra mediului și de evaluare adecvată (dacă este cazul)."]
["4.5 Aviz Natura 2000 pentru proiectele care  impun doar evaluare adecvată."]
["5. Avizul de conformitate al Operatorului Regional."]
["6. Hotărârea Consiliului Local / Hotaririle Consiliului Local în cazul ADI/\nHotararea Adunarii Generala în cazul ONG pentru implementarea proiectului, cu referire la următoarelor puncte (obligatorii):\n• necesitatea, oportunitatea și potenţialul economic al investiţiei;\n• lucrările vor fi prevăzute în bugetul/bugetele local/e pentru perioada de realizare a investiţiei;\n• angajamentul de a suporta cheltuielile de mentenanta a investiţiei pe o perioadă de minimum 5 ani de la data efectuării ultimei plăţi;\n• numărul de locuitori deserviţi de proiect / utilizatori direcţi \n• caracteristici tehnice (lungimi, arii, volume, capacităţi etc.);\n• agenţii economici deserviţi direct de investiţie (dacă este cazul, număr\nși denumire);\n• nominalizarea reprezentantului legal al comunei/ADI/ONG pentru relaţia cu AFIR în derularea proiectului.\n• angajamentul de asigurare a cofinantarii, daca este cazul."]
["7.1 Certificatul de înregistrare fiscală"]
["7.2 Încheiere privind înscrierea în Registrul Asociațiilor și Fundațiilor, rămasă definitivă / Certificat de înregistrare în\nRegistrul Asociațiilor și Fundațiilor"]
["7.2.1 Actul de înfiinţare şi statutul ADI/ONG"]
["8. Certificate care să ateste lipsa datoriilor fiscale restante și graficul de\nreeșalonare a datoriilor către bugetul consolidat (daca este cazul)."]
["9. Certificatul de cazier judiciar"]
["10. Document emis de bancă/trezorerie care să conțină datele de identificare ale băncii/trezoreriei și ale contului aferent proiectului pentru care se solicită finanțare din PNDR (denumirea, adresa băncii/ trezoreriei, codul IBAN al contului în care se derulează operațiunile cu AFIR)."]
["11.1 Notificare privind conformitatea proiectului cu condiţiile de igienă şi sănătate publică\nsau"]
["11.2 Notificare că investiţia nu face obiectul evaluării condiţiilor de igienă şi sănătate publică, dacă este cazul."]
["12. Lista agentilor economici deserviţi de proiect, care va conţine denumirea, adresa, activitatea desfăşurată, codul proiectului cu finanțare europeană și valoarea totală a investiției, pentru fiecare investiție accesibilizată şi a institutiilor de sociale și de interes public deservite direct de proiect."]
["13. Raport asupra utilizării programelor de finanţare nerambursabilă întocmit de solicitant (va cuprinde amplasamentul, obiective, tip de investiție, lista cheltuielilor eligibile, costurile și stadiul proiectului, perioada derulării contractului), pentru solicitantii care au mai beneficiat de finanțare nerambursabilă începând cu anul 2007, pentru aceleași tipuri de investiții"]
["14. Notificare, care sa certifice conformitatea proiectului cu legislatia iîn vigoare pentru domeniul sanitar veterinar și ca prin realizarea investiției în conformitate cu proiectul verificat de DSVSA județeană,  construcția va fi în concordanță cu legislația în vigoare pentru domeniul sanitar veterinar și pentru siguranța alimentelor, dacă este cazul."]
["15. Extrasul din strategie, care confirma daca investiția este în corelare cu orice strategie de dezvoltare națională / regional / județeană / locală aprobată, corespunzătoare domeniului de investiții precum și copia hotărârii de aprobare a strategiei."]
["16. Proiectul tehnic va respecta prevederile legale în vigoare privind conţinutului-cadru al documentaţiei tehnico-economice aferente investiţiilor publice, precum şi a structurii şi metodologiei de elaborare a devizului general pentru obiective de investiţii şi lucrări de intervenţii."]
["17. Copia Documentului de identitate al reprezentantului legal al beneficiarului."]
["18. Dovada achitarii integrale a datoriei față de AFIR, inclusiv dobânzile și majorările de întârziere, dacă este cazul"]
["19. Alte documente justificative (Se vor specifica dupa caz)"]
[]
[]
[]
[]
[]
[]
[]
[]
["F. DECLARAŢIE PE PROPRIA RĂSPUNDERE A SOLICITANTULUI"]
[]
["Prin această declaraţie solicitantul"]
[null,{"$f":"'Sectiunile A-C'!A130","v":0}]
[]
["care solicită asistență financiară nerambursabilă prin programul FEADR pentru proiectul intitulat"]
[{"$f":"'Sectiunile A-C'!A48","v":0}]
[]
[]
["prin reprezentant legal"]
[{"$f":"'Sectiunile A-C'!A158","v":0},null,null,null,null,{"$f":"'Sectiunile A-C'!C158","v":0}]
["cunoscând prevederile legii penale cu privire la falsul în declarații:\n1. Declar că proiectul propus asistenței financiare nerambursabile FEADR nu beneficiază de altă finanțare din programe de finanțare nerambursabilă.\nDe asemenea mă angajez ca în cazul în care proiectul va fi selectat pentru finanțare FEADR, nu voi depune acest proiect la nici un alt program de finanțare nerambursabilă la care proiectul poate fi în întregime sau parțial eligibil pentru asistență.\n2. Declar că îndeplinesc condițiile de eligibilitate prevăzute în fișa măsurii și Ghidul Solicitantului și mă angajez să le respect pe perioada de valabilitate a contractului de finanțare și monitorizare a investiției, inclusiv criteriile de selecție pentru care proiectul a fost punctat.\n3. Declar că toate informațiile din prezenta cerere de finanțare și din documentele anexate sunt corecte și mă angajez să respect condițiile cerute în reglementările referitoare la prezentul program și pe cele legate de proiectul anexat și să furnizez periodic, la cerere, documentele justificative necesare.\n4. Declar pe propria răspundere că orice modificări aduse dreptului de proprietate sau de folosință vor fi notificate AFIR în termen de trei zile de la data producerii lor.\n5.   Declar că eu și organizația mea (UAT sau ONG) nu ne aflăm într-unul din următoarele cazuri:\nAcuzat din cauza unei greșeli privind conduita profesională având ca soluție finală res judicata (împotriva căreia nici un apel nu este posibil)\nVinovat de grave deficiențe de conduită profesională dovedite prin orice mijloace pe care Agenția le poate justifica.               Vinovat de faptul că nu am prezentat informaţiile cerute de autoritatea contractantă ca o condiţie de participare la licitaţie sau contractare\nÎncălcarea prevederilor contractuale prin care nu mi-am îndeplinit obligațiile contractuale în legătură cu un alt contract cu Agenția sau alte contracte finanțate din fonduri comunitare.\nÎncercarea de a obține informații confidențiale sau de influențare a Agenției în timpul procesului de evaluare a proiectului și nu voi face presiuni la adresa evaluatorului. "]
[]
[]
[]
[]
[]
[]
[]
[]
[]
[]
[]
[]
[]
[]
[]
[]
[]
[]
[]
[]
[]
[]
["6.                Declar că organizația pe care o reprezint ARE datorii către instituții de credit și/sau instituții financiare nebancare. În acest sens, atașez Graficul de rambursare a datoriilor și document de la bancă pentru certificarea respectării graficului de rambursare.\n\n"]
[]
[]
["                    Declar că organizația pe care o reprezint NU are datorii către instituții de credit şi/sau instituții financiare nebancare."]
[]
["7.Declar pe propria răspundere ca în cazul în care nu respect oricare din punctele prevăzute în această declarație proiectul să devină neeligibil în baza criteriului \"Eligibilitatea solicitantului\" sau contractul să fie reziliat.\n"]
[]
[]
["8.  Declar pe propria răspundere că:"]
["               Nu sunt înregistrat în scopuri TVA și că mă angajez să notific Agenției orice modificare a situatiei privind înregistrarea ca plătitor de TVA, în maximum 10 (zece) zile de la data înregistrării în scopuri TVA."]
[]
["               Sunt înregistrat în scopuri de TVA (certificat de înregistrare fiscală în scopuri de TVA)."]
[]
["9.  Declar pe propria răspundere că nu am înscrieri care privesc sancțiuni economico-financiare în cazierul judiciar pe care mă oblig să îl depun la încheierea contractului de finanțare."]
[]
["10.  Declar pe propria raspundere că nu am fapte înscrise în cazierul fiscal."]
["11.  Declar pe propria răspundere că toate cheltuielile neeligibile vor fi suportate de solicitant și că acestea vor fi realizate până la finalizarea proiectului."]
[]
["12.  Ma angajez ca in termenul precizat in Ghidul Solicitantului, de la data primirii \"Notificarii benficiarului privind selectarea cererii de finantare si semnarea contractului de finantare\", sa asigur si sa prezint documentele obligatorii mentionate in Ghidul solicitantului pentru contractarea proiectului."]
[]
[]
["13.  Declar pe proprie raspundere ca voi achita integral datoria fata de AFIR, inclusiv dobanzile si majorarile de intarziere pana la semnarea contractului de finantare (pentru solicitantii inregistrati in registrul debitorilor AFIR atat pentru programul SAPARD cat si pentru FEADR)."]
[]
[]
["14. Declar pe propria răspundere ca nu sunt în insolventă sau incapacitate de plată."]
[]
["15. Declar pe propria răspundere că în conformitate cu termenul menţionat în notificarea AFIR privind selecţia cererii de finanţare, voi obţine şi depune, înainte de semnarea contractului de finanţare, documentul emis de ANPM menţionat în secţiunea E punctul 4 a cererii de finanţare."]
[]
[]
[]
["16. Accept publicarea pe site-ul AFIR a datelor mele, cu respectarea legislaţiei naţionale şi europene privind transparenţa."]
[]
[]
[]
[]
["Semnătura reprezentant legal şi ştampila",null,null,null,null,null,"Data"]
[]
[]
[]
[]
[]
[]
[]
[]
["Anexa INDICATORI DE MONITORIZARE -"]
["Masura 1/6B -  Dezvoltarea si modernizarea satelor din teritoriul Banatul de Nord "]
["1. Tipul de sprijin",null,null,"a. Modernizarea infrastructurii rutiere la scară redusă care facilitează accesul la obiective de interes public;"]
[null,null,null,"b. Infiintarea, amenajarea spatillor publice de agrement pentru populatia rurală;"]
[null,null,null,"c. Infiintarea/dezvoltarea si dotarea infrastructurii de valorificare a produselor locale;"]
[null,null,null,"d. Infiintarea si/sau extinderea retelei publice de iluminat;"]
[null,null,null,"e. Infiintarea si/sau extinderea sistemelor de supraveghere video;"]
[null,null,null,"f. Achizitionarea utilajelor, echipamentelor pentru serviciile publice locale in cadrul primăriilor;"]
[null,null,null,"g. Infiintarea, modernizarea si/sau dotarea infrastructurii de agrement si turistic de uz public conform specificului local;"]
[null,null,null,"h.Modernizarea si dotarea infrastructurii publice(sedii primarii, dispensare,baze sportive, statii de autobuz);"]
[null,null,null,"i.Constructia de capele."]
["2. Numărul comunelor sprijinite"]
["3. Număr KM de drum",null,null,"Nou construiţi"]
[null,null,null,"Modernizați"]
["4. Număr locuri de munca nou create",null,null,"Locuri de munca nou create"]
["5. Număr KM de conducte de canalizare",null,null,"Noi lucrări"]
[null,null,null,"Extindere şi/ sau modernizare"]
["6. Număr locuitori deserviţi"]
[]
["7. Zonă montană (DA/ NU)"]
["8. Contribuie la Prioritatea 1",null,null,"M01 - Transfer de cunoştinţe şi acţiuni de informare"]
[null,null,null,"M02 - Servicii de consiliere"]
[null,null,null,"M16 - Cooperare"]
["Indic. nr. 1 - se va bifa doar o singura categorie/ categoria majoritară\nIndic. nr. 2 - se va completa numărul comunelor sprijinite prin proiect\nIndic. nr. 3, 4, 5 - se va completa numărul de KM de drum, numarul locurilor de munca şi de conducte de canalizare realizate prin proiect\nIndic. nr. 6 - se va completa numărul locuitorilor deserviţi\nIndic. nr. 7 - se va completa cu \"DA\" în cazul în care investiţia este amplasată în zonă montană (cf. Listei UAT din Zonele Montane); în caz contrar  se va completa \"NU\"\nIndic. nr. 8 - se va completa din momentul demararii M01, M02, respectiv M16, cu bifa în dreptul măsurii corespunzătoare, dacă va fi cazul.\nPentru indicatorii de tip numeric care nu fac obiectul investitiei  sa va completa valoarea zero.\n"]
[]
[]
[]
[]
[]
[]
[]
["Anexa INDICATORI LOCALI DE MONITORIZARE"]
["MASURA  M1/ 6B -  Dezvoltare si modernizarea satelor din teritoriul Banatul de Nord"]
["1. Populația netă care beneficiază de servicii/infrastructuri îmbunătățite"]
["2. Nr. de comune /orașe sprijinite"]
["3. Numărul de proiecte ce au componente inovative sau de protecția mediului"]
["4. Cheltuială publică totală ",null,null,null,null,null,null,null,{"$f":"'Buget indicativ si Anexe'!G76","v":0}]
[]
[]
[]
[]
["FACTORI DE RISC"]
["   I1. Valoarea sprijinului public nerambursabil (EURO)",null,null,null,null,null,null,"Punctaj obţinut"]
[]
["• 2.500.001 > 4.000.000",null,null,null,null,null,null,5]
[]
["• 1.000.001 > 2.500.000",null,null,null,null,null,null,4]
[]
["• 500.001 > 1.000.000",null,null,null,null,null,null,3]
[]
["• 5.000 ≤ 500.000",null,null,null,null,null,null,1]
[]
["    I2. Complexitatea investitiei"]
["Solicitanți Publici",null,"Punctaj obţinut",null,"Solicitanți Privați",null,null,"Punctaj obţinut"]
[]
["• Investiție nouă",null,null,5,"• Investiție nouă",null,null,null,5]
[]
["• Modernizări cu C+M",null,null,4,"• Modernizări cu C+M",null,null,null,4]
[]
[]
["I3. Riscul proiectului d.p.d.v. al raportului procentual între Cheltuielile suportate de solicitant si Valoarea ajutorului nerambursabil                                                 \n          Total valoare proiect (fără TVA)\n% = --------------------------------------------------------- x 100\n       Valoarea ajutorului nerambursabil solicitat\n",null,null,null,null,null,null,"Punctaj obţinut"]
[]
[]
[]
["• > 110%",null,null,null,null,null,null,5]
[]
["• între 101 si 110%",null,null,null,null,null,null,3]
[]
["• = 100%",null,null,null,null,null,null,1]
[]
[]
["I4. Capacitatea solicitantului de a manageria proiectul, experiența în implementarea proiectelor finanțate din fonduri comunitare",null,null,null,null,null,null,"Punctaj obtinut"]
["• Solicitant care nu a implementat un alt proiect SAPARD/FEADR, comunitar sau nu a obținut asistență financiară nerambursabilă din partea altui instrument financiar.",null,null,null,null,null,null,5]
["• Solicitant care are experiența implementării și care a finalizat un proiect SAPARD/FEADR, comunitar sau obținut asistență financiară nerambursabilă din partea altui instrument financiar",null,null,null,null,null,null,3]
["• Solicitant care are experiența implementării și care a finalizat un proiect SAPARD/FEADR și un alt proiect comunitar sau obținut din asistența financiară nerambursabilă din partea altui instrument financiar",null,null,null,null,null,null,1]
["TOTAL",null,null,null,null,null,"(I1+I2+I3+I4)/4"]
[]
["Pentru selectarea proiectelor ce vor fi verificate prin sondaj, se va determina riscul fiecărui proiect folosind cei 4 factori de risc (I1, I2, I3 si I4).                                                                                                                                                                                                                                                       Pentru fiecare proiect se va determina punctajul fiecărui factor de risc pe o scară de la 1 la 5"]
[]
[]
[]
["Codul unic de înregistrare APIA"]
["În cazul în care nu aveți un cod unic de înregistrare APIA, completați acest formular"]
[null,null,"FORMULAR"]
["de înscriere în Registrul unic de identificare pentru solicitanţii de finanţare prin măsurile"]
["Programului naţional de dezvoltare rurală 2014 - 2020"]
[]
["Denumire solicitant:"]
[]
[]
["Categorie Solicitant:"]
["Sediul / Adresa"]
["Ţara ",null,null,"Judeţul",null,null,"ORASUL"]
[]
["comuna",null,null,"satul",null,null,"strada"]
[]
["numar",null,"bloc",null,"etaj",null,"cod postal"]
[]
["nr. Telefon",null,null,"fax",null,null,"email"]
[]
["Număr de înregistrare în registrul comerțului/Registrul asociațiilor și fundațiilor"]
[]
["CUI / CIF"]
[]
["Cod CAEN pentru activitatea principală"]
[]
["Cod CAEN pentru activitatea secundară pentru care se solicită înregistrarea în Registrul unic de identificare"]
[]
["Cod IBAN"]
["deschis la Banca"]
["Sucursala / Agenție"]
[]
["Prin reprezentant legal, doamna/domnul"]
["cu CNP",null,null,null,", solicit înscrierea în Registrul unic de îdentificare "]
["Agenţia de Plăţi şi Intervenţie pentru Agricultură."]
["Am luat la cunoştinţă că orice modificare a informaţiilor de mai sus trebuie furnizată către APIA în termen de maximum 10 zile lucrătoare de la producerea acestora.\nDeclar pe propria răspundere că cele de mai sus sunt conforme cu realitatea.\nSunt de acord ca datele din cerere să fie introduse în baza de date a Sistemului Integrat de Administrare şi Control, procesate şi verificate în vederea înscrierii în Registrul unic de identificare şi transmise autorităţilor responsabile în vederea elaborării de studii statistice şi de evaluări economice, în condiţiile Legii nr. 677-2001 pentru protecţia persoanelor cu privire la prelucrarea datelor cu caracter personal şi libera circulaţie a acestor date, cu modificarile şi completările ulterioare.\n"]
[]
[]
[]
[]
[]
[]
[]
[]
["Reprezentant legal",null,null,null,null,null,null,"Data"]
[]
[]
["Numele şi prenumele"]
[]
["Semnătura ................................................................................................................................."]